bitfinex/quotes_BTCUSD_20241101
["timestamp","ask_amount","ask_price","bid_price","bid_amount"]
[1730471485713,0.16448342,71583.0,71562.0,0.3494241]
[1730471485909,0.16448342,71583.0,71562.0,0.2096861]
[1730471488048,0.16448342,71583.0,71562.0,0.2106861]
[1730471488460,0.16448342,71583.0,71562.0,0.2096861]
[1730471488870,0.13845525,71583.0,71571.0,0.2096861]
[1730471489101,0.13845525,71583.0,71570.0,0.139722]
[1730471489361,0.13845525,71583.0,71562.0,0.2096861]
[1730471489362,0.05606008,71605.0,71579.0,0.2096861]
[1730471489571,0.2096861,71595.0,71585.0,0.279384]
[1730471489786,0.2096861,71595.0,71579.0,0.0987]
[1730471489787,0.2096861,71595.0,71586.0,0.359882]
[1730471489997,0.13845525,71599.0,71587.0,0.139689]
[1730471490204,0.13845525,71599.0,71586.0,0.0805]
[1730471490205,0.13845525,71599.0,71588.0,0.139687]
[1730471490418,0.13845525,71599.0,71587.0,0.139689]
[1730471490620,0.13845525,71599.0,71586.0,0.359882]
[1730471490621,0.13845525,71599.0,71586.0,0.0805]
[1730471490828,0.13845525,71599.0,71587.0,0.2096861]
[1730471491389,0.13845525,71599.0,71588.0,0.001]
[1730471491785,0.13845525,71599.0,71587.0,0.2096861]
[1730471492149,0.16179189,71599.0,71587.0,0.2096861]
[1730471492275,0.16179189,71599.0,71587.0,0.001]
[1730471492471,0.13845525,71599.0,71588.0,0.2096861]
[1730471492693,0.13845525,71599.0,71587.0,0.001]
[1730471492694,0.2096861,71595.0,71587.0,0.001]
[1730471492889,0.13845525,71594.0,71587.0,0.001]
[1730471493524,0.13845525,71594.0,71580.0,0.2096861]
[1730471493735,0.139701,71582.0,71580.0,0.2096861]
[1730471493936,0.139701,71582.0,71575.0,0.0772]
[1730471493937,0.139688,71588.0,71587.0,0.001]
[1730471494162,0.27814325,71588.0,71587.0,0.001]
[1730471494370,0.27814325,71588.0,71575.0,0.0772]
[1730471494371,0.13845525,71588.0,71575.0,0.0772]
[1730471494577,0.18023808,71587.0,71579.0,0.2096861]
[1730471494843,0.13845525,71587.0,71580.0,0.001]
[1730471495197,0.13845525,71587.0,71575.0,0.0772]
[1730471495673,0.13845525,71587.0,71575.0,0.0782]
[1730471497125,0.13845525,71587.0,71575.0,0.0772]
[1730471497612,0.279384,71586.0,71575.0,0.0772]
[1730471497787,0.139706,71579.0,71575.0,0.0772]
[1730471498130,0.139705,71579.0,71575.0,0.0772]
[1730471498533,0.139705,71579.0,71575.0,0.0782]
[1730471498763,0.279395,71583.0,71575.0,0.0782]
[1730471498964,0.139711,71576.0,71575.0,0.001]
[1730471499171,0.27816625,71576.0,71575.0,0.001]
[1730471499487,0.30116625,71576.0,71575.0,0.001]
[1730471499870,0.13845525,71576.0,71572.0,0.001648]
[1730471500720,0.13845525,71576.0,71575.0,0.001]
[1730471501321,0.13845525,71576.0,71572.0,0.001648]
[1730471501695,0.13845525,71576.0,71572.0,0.002648]
[1730471502004,0.13845525,71575.0,71572.0,0.002648]
[1730471503163,0.13845525,71575.0,71572.0,0.001648]
[1730471503313,0.13845525,71575.0,71572.0,0.002648]
[1730471503908,0.13845525,71575.0,71572.0,0.001648]
[1730471504134,0.001,71575.0,71573.0,0.2096861]
[1730471504343,0.001,71575.0,71572.0,0.001648]
[1730471504726,0.1,71586.0,71572.0,0.001648]
[1730471504940,0.16942386,71585.0,71572.0,0.001648]
[1730471505304,0.16942386,71585.0,71572.0,0.002648]
[1730471506114,0.2326861,71584.0,71572.0,0.002648]
[1730471506243,0.023,71582.0,71573.0,0.2096861]
[1730471506584,0.023,71580.0,71574.0,0.2096861]
[1730471506786,0.10437711,71605.0,71574.0,0.2096861]
[1730471506988,0.34814135,71594.0,71575.0,0.0831]
[1730471507143,0.2096861,71593.0,71575.0,0.0831]
[1730471507345,0.13845525,71592.0,71575.0,0.0831]
[1730471507545,0.17326939,71592.0,71575.0,0.0831]
[1730471507753,0.13845525,71592.0,71575.0,0.0831]
[1730471507956,0.04257484,71599.0,71577.0,0.139709]
[1730471508156,0.2096861,71594.0,71576.0,0.14250391]
[1730471508360,0.34814135,71594.0,71576.0,0.13971]
[1730471508565,0.13845525,71593.0,71575.0,0.0841]
[1730471508784,0.17326939,71593.0,71575.0,0.2937861]
[1730471509195,0.023,71592.0,71575.0,0.2937861]
[1730471509419,0.13845525,71591.0,71575.0,0.2937861]
[1730471509875,0.13845525,71591.0,71575.0,0.2927861]
[1730471510094,0.13845525,71591.0,71575.0,0.2944341]
[1730471510335,0.13845525,71591.0,71577.0,0.001]
[1730471510541,0.023,71584.0,71577.0,0.001]
[1730471510744,0.023,71584.0,71576.0,0.2096861]
[1730471510745,0.162709,71577.0,71576.0,0.2096861]
[1730471510947,0.30116425,71577.0,71576.0,0.2096861]
[1730471511114,0.30116425,71577.0,71575.0,0.001648]
[1730471511115,0.16145525,71577.0,71575.0,0.002648]
[1730471511372,0.13845525,71576.0,71575.0,0.002648]
[1730471511576,0.2096861,71595.0,71575.0,0.002648]
[1730471511577,0.1,71601.0,71576.0,0.2096861]
[1730471511780,0.28975976,71603.0,71575.0,0.001648]
[1730471511781,0.2096861,71587.0,71575.0,0.001648]
[1730471511930,0.2096861,71595.0,71575.0,0.001648]
[1730471511931,0.13845525,71586.0,71575.0,0.001648]
[1730471512358,0.13845525,71586.0,71576.0,0.2096861]
[1730471512528,0.13845525,71586.0,71575.0,0.001648]
[1730471512884,0.023,71585.0,71575.0,0.001648]
[1730471513071,0.13845525,71584.0,71575.0,0.001648]
[1730471513225,0.023,71583.0,71575.0,0.001648]
[1730471513426,0.13845525,71582.0,71575.0,0.001648]
[1730471513726,0.023,71581.0,71575.0,0.001648]
[1730471513930,0.023,71579.0,71575.0,0.001648]
[1730471514079,0.023,71577.0,71575.0,0.001648]
[1730471514258,0.13845525,71576.0,71575.0,0.001648]
[1730471514460,0.13845525,71576.0,71575.0,0.001448]
[1730471514461,0.16065525,71576.0,71575.0,0.001448]
[1730471515059,0.1,71592.0,71575.0,0.002448]
[1730471515279,0.023,71586.0,71575.0,0.002448]
[1730471515488,0.1,71592.0,71575.0,0.002448]
[1730471515489,0.023,71584.0,71575.0,0.002448]
[1730471515740,0.123,71582.0,71575.0,0.002448]
[1730471515909,0.023,71580.0,71575.0,0.002448]
[1730471516109,0.023,71578.0,71575.0,0.002448]
[1730471516370,0.13845525,71577.0,71575.0,0.002448]
[1730471516520,0.023,71576.0,71575.0,0.002448]
[1730471516725,0.16145525,71576.0,71575.0,0.001448]
[1730471518060,0.17760078,71576.0,71575.0,0.002448]
[1730471518469,0.17760078,71576.0,71575.0,0.001448]
[1730471518470,0.16145525,71576.0,71575.0,0.001448]
[1730471519945,0.16145525,71576.0,71575.0,0.002448]
[1730471520550,0.16145525,71576.0,71575.0,0.001448]
[1730471521463,0.16145525,71576.0,71575.0,0.002448]
[1730471521887,0.13845525,71576.0,71575.0,0.001448]
[1730471522086,0.13845525,71576.0,71575.0,0.002448]
[1730471522293,0.008,71576.0,71575.0,0.079748]
[1730471523106,0.108,71576.0,71575.0,0.079748]
[1730471523303,0.25525525,71576.0,71575.0,0.078748]
[1730471523529,0.39496625,71576.0,71575.0,0.001448]
[1730471523729,0.39596625,71576.0,71575.0,0.001448]
[1730471524013,0.41196625,71576.0,71575.0,0.001448]
[1730471524215,0.41196625,71576.0,71575.0,0.002448]
[1730471524754,0.40116625,71576.0,71575.0,0.001448]
[1730471525080,0.40416625,71576.0,71575.0,0.001448]
[1730471526610,0.40116625,71576.0,71575.0,0.001448]
[1730471526810,0.40416625,71576.0,71575.0,0.001448]
[1730471526988,0.007952,71575.0,71572.0,0.001648]
[1730471527205,0.007952,71575.0,71574.0,0.3494011]
[1730471527340,0.007952,71575.0,71574.0,0.312015]
[1730471528447,0.007952,71575.0,71574.0,0.313015]
[1730471529081,0.007952,71575.0,71574.0,0.001]
[1730471529469,0.28612025,71575.0,71574.0,0.001]
[1730471529689,0.162716,71574.0,71572.0,0.001648]
[1730471530018,0.27817225,71573.0,71572.0,0.001648]
[1730471530227,0.13845525,71573.0,71572.0,0.001648]
[1730471530396,0.23525188,71573.0,71572.0,0.001648]
[1730471530824,0.37496888,71573.0,71572.0,0.001648]
[1730471531011,0.37496888,71573.0,71572.0,0.002648]
[1730471531012,0.49796888,71573.0,71572.0,0.002648]
[1730471531436,0.49796888,71573.0,71572.0,0.001648]
[1730471531781,0.40117225,71573.0,71572.0,0.001648]
[1730471531990,0.40117225,71573.0,71572.0,0.002648]
[1730471533272,0.40117225,71573.0,71572.0,0.001648]
[1730471533490,0.13845525,71573.0,71572.0,0.001648]
[1730471533696,0.27817225,71573.0,71572.0,0.001648]
[1730471533873,0.14045525,71573.0,71572.0,0.001648]
[1730471534080,0.28517225,71573.0,71572.0,0.001648]
[1730471534292,0.35200837,71573.0,71572.0,0.001648]
[1730471534507,0.34700837,71573.0,71572.0,0.001648]
[1730471534913,0.34500837,71573.0,71572.0,0.001648]
[1730471535263,0.13845525,71573.0,71572.0,0.002648]
[1730471535893,0.27817225,71573.0,71572.0,0.002648]
[1730471536447,0.27817225,71573.0,71572.0,0.001648]
[1730471536760,0.27817225,71573.0,71572.0,0.002648]
[1730471537166,0.27817225,71573.0,71572.0,0.001648]
[1730471537167,0.13845525,71573.0,71572.0,0.001648]
[1730471538227,0.27817225,71573.0,71572.0,0.001648]
[1730471538433,0.30117225,71573.0,71572.0,0.001648]
[1730471539080,0.43967026,71573.0,71572.0,0.001648]
[1730471539406,0.40117225,71573.0,71572.0,0.001648]
[1730471539963,0.40117225,71573.0,71572.0,0.002648]
[1730471540405,0.40117225,71573.0,71572.0,0.001648]
[1730471540631,0.53599378,71573.0,71572.0,0.001648]
[1730471540836,0.023,71572.0,71556.0,0.1979821]
[1730471541044,0.139739,71562.0,71556.0,0.1979821]
[1730471541457,0.41789725,71571.0,71556.0,0.1979821]
[1730471541458,0.023,71570.0,71556.0,0.1979821]
[1730471541668,0.023,71570.0,71553.0,0.0993]
[1730471541669,0.139738,71562.0,71553.0,0.0993]
[1730471541806,0.139739,71562.0,71553.0,0.0993]
[1730471542012,0.139738,71563.0,71553.0,0.0993]
[1730471542218,0.139737,71563.0,71553.0,0.0993]
[1730471542581,0.139739,71562.0,71553.0,0.0993]
[1730471542812,0.139742,71561.0,71553.0,0.0993]
[1730471543003,0.13845525,71560.0,71556.0,0.001]
[1730471543223,0.023,71558.0,71556.0,0.001]
[1730471543368,0.30120325,71557.0,71556.0,0.001]
[1730471543574,0.16145525,71557.0,71550.0,0.2]
[1730471543803,0.139757,71553.0,71550.0,0.2]
[1730471544053,0.13976,71551.0,71550.0,0.2]
[1730471544264,0.27821525,71551.0,71550.0,0.2]
[1730471544595,0.27821525,71551.0,71550.0,0.15]
[1730471546139,0.30121525,71551.0,71550.0,0.151]
[1730471546374,0.38723858,71551.0,71550.0,0.151]
[1730471546582,0.38723858,71551.0,71550.0,0.15]
[1730471547009,0.30121525,71551.0,71550.0,0.151]
[1730471547476,0.30121525,71551.0,71550.0,0.15]
[1730471547908,0.30421525,71551.0,71550.0,0.15]
[1730471548321,0.30821525,71551.0,71550.0,0.15]
[1730471548747,0.30821525,71551.0,71534.0,0.08138]
[1730471548748,0.139791,71535.0,71534.0,0.08138]
[1730471548972,0.16145525,71535.0,71534.0,0.08138]
[1730471551113,0.13845525,71541.0,71534.0,0.08138]
[1730471551327,0.27823525,71541.0,71534.0,0.08238]
[1730471551465,0.13845525,71541.0,71534.0,0.08338]
[1730471551800,0.13845525,71541.0,71534.0,0.08238]
[1730471552034,0.13845525,71541.0,71534.0,0.08338]
[1730471552146,0.023,71552.0,71534.0,0.08338]
[1730471552359,0.139773,71545.0,71534.0,0.08238]
[1730471552604,0.13845525,71544.0,71534.0,0.08238]
[1730471553022,0.13845525,71544.0,71534.0,0.08138]
[1730471553193,0.13845525,71544.0,71534.0,0.08238]
[1730471553399,0.04179893,71543.0,71534.0,0.08238]
[1730471553614,0.18025418,71543.0,71534.0,0.08238]
[1730471553779,0.18025418,71543.0,71534.0,0.08138]
[1730471553989,0.27823325,71542.0,71534.0,0.08138]
[1730471554218,0.13845525,71542.0,71534.0,0.08338]
[1730471554420,0.04597972,71541.0,71534.0,0.08238]
[1730471554606,0.13845525,71540.0,71534.0,0.08138]
[1730471554818,0.13845525,71540.0,71534.0,0.08238]
[1730471555037,0.13845525,71540.0,71534.0,0.08138]
[1730471555246,0.02053996,71539.0,71534.0,0.08138]
[1730471555494,0.02053996,71539.0,71534.0,0.08238]
[1730471555710,0.02053996,71539.0,71534.0,0.08138]
[1730471556139,0.13979,71536.0,71534.0,0.08238]
[1730471556356,0.13845525,71535.0,71534.0,0.08238]
[1730471556577,0.30124625,71535.0,71534.0,0.00258]
[1730471556820,0.30124625,71535.0,71534.0,0.00358]
[1730471557041,0.38953404,71535.0,71534.0,0.00358]
[1730471557252,0.38953404,71535.0,71534.0,0.00258]
[1730471557713,0.38953404,71535.0,71534.0,0.00358]
[1730471557924,0.38953404,71535.0,71534.0,0.00258]
[1730471558145,0.30124625,71535.0,71534.0,0.00258]
[1730471558581,0.30124625,71535.0,71534.0,0.00358]
[1730471558801,0.30124625,71535.0,71534.0,0.00258]
[1730471559234,0.40124625,71535.0,71534.0,0.00158]
[1730471559462,0.40124625,71535.0,71534.0,0.00258]
[1730471559676,0.52524237,71535.0,71534.0,0.00158]
[1730471559890,0.52524237,71535.0,71534.0,0.00258]
[1730471560103,0.56874038,71535.0,71534.0,0.00258]
[1730471560323,0.53024237,71535.0,71534.0,0.00158]
[1730471560540,0.53024237,71535.0,71517.0,0.2096861]
[1730471560541,0.1,71534.0,71517.0,0.2096861]
[1730471560767,0.262811,71525.0,71517.0,0.2096861]
[1730471561195,0.262811,71525.0,71503.0,0.001582]
[1730471562138,0.262848,71506.0,71503.0,0.001582]
[1730471562794,0.262852,71504.0,71503.0,0.001582]
[1730471563011,0.52534657,71504.0,71503.0,0.001582]
[1730471563442,0.40130725,71504.0,71503.0,0.001582]
[1730471565173,5.21113425,71504.0,71503.0,0.001582]
[1730471565404,5.23313425,71504.0,71503.0,0.003582]
[1730471565627,2.33630725,71504.0,71503.0,0.002582]
[1730471565853,1.59430725,71504.0,71503.0,0.001582]
[1730471566079,1.73878455,71504.0,71503.0,0.002582]
[1730471566318,1.74678455,71504.0,71503.0,0.003582]
[1730471566549,1.74678455,71504.0,71486.0,0.00158]
[1730471566550,0.162885,71487.0,71486.0,0.00158]
[1730471566793,0.43964025,71487.0,71486.0,0.00158]
[1730471567004,0.53920267,71487.0,71486.0,0.00158]
[1730471568339,0.57674647,71487.0,71486.0,0.00140566]
[1730471568960,0.57674647,71487.0,71486.0,0.00240566]
[1730471569198,0.59074647,71487.0,71486.0,0.00240566]
[1730471569421,0.59074647,71487.0,71478.0,0.001582]
[1730471569422,0.239911,71474.0,71468.0,0.2096861]
[1730471569676,0.47520115,71474.0,71468.0,0.2096861]
[1730471569871,0.47520115,71474.0,71473.0,0.00517263]
[1730471570301,0.40136625,71474.0,71473.0,0.00517263]
[1730471570956,0.13845525,71474.0,71473.0,0.00517263]
[1730471571598,0.3495761,71485.0,71473.0,0.00517263]
[1730471571812,0.13845525,71484.0,71473.0,0.00517263]
[1730471572030,0.001,71474.0,71473.0,0.00517263]
[1730471572242,0.003,71474.0,71473.0,0.00517263]
[1730471572468,0.002,71474.0,71473.0,0.00517263]
[1730471572703,0.13845525,71484.0,71473.0,0.00517263]
[1730471572931,0.2096861,71481.0,71474.0,0.1013]
[1730471573134,0.13845525,71480.0,71474.0,0.1013]
[1730471573571,0.279802,71479.0,71474.0,0.1013]
[1730471573772,0.13845525,71478.0,71474.0,0.1013]
[1730471573986,0.16226575,71477.0,71474.0,0.1013]
[1730471574193,0.13845525,71476.0,71474.0,0.1013]
[1730471574611,0.139911,71474.0,71473.0,0.00517263]
[1730471574823,0.13845525,71474.0,71473.0,0.00517263]
[1730471575458,0.27836625,71474.0,71473.0,0.00517263]
[1730471575675,0.38536956,71474.0,71473.0,0.00517263]
[1730471576146,0.48836956,71474.0,71473.0,0.00517263]
[1730471576390,0.48636956,71474.0,71473.0,0.00517263]
[1730471576613,0.48536956,71474.0,71473.0,0.00517263]
[1730471576817,0.49236956,71474.0,71473.0,0.00517263]
[1730471577059,0.49836956,71474.0,71473.0,0.00517263]
[1730471577275,0.52136956,71474.0,71473.0,0.00517263]
[1730471577487,0.55891336,71474.0,71473.0,0.00517263]
[1730471577696,0.139928,71465.0,71464.0,0.001646]
[1730471577908,0.43892705,71465.0,71464.0,0.001646]
[1730471578114,0.41592705,71465.0,71464.0,0.001646]
[1730471578528,0.37838325,71465.0,71464.0,0.001646]
[1730471579029,0.43892705,71465.0,71464.0,0.001646]
[1730471579200,0.58077406,71465.0,71464.0,0.001646]
[1730471579593,0.58077406,71465.0,71462.0,0.001582]
[1730471579594,0.262932,71463.0,71462.0,0.001582]
[1730471579811,0.40138725,71463.0,71462.0,0.001582]
[1730471580427,2.51304452,71463.0,71462.0,0.001582]
[1730471580686,0.139956,71451.0,71450.0,0.2096861]
[1730471580848,0.239979,71439.0,71438.0,9e-05]
[1730471581074,0.37843425,71439.0,71438.0,9e-05]
[1730471581846,0.58812035,71439.0,71438.0,9e-05]
[1730471582072,0.37843425,71439.0,71438.0,9e-05]
[1730471582280,0.58812035,71439.0,71438.0,9e-05]
[1730471582511,0.139993,71432.0,71431.0,0.001582]
[1730471582730,4.53244825,71432.0,71431.0,0.001582]
[1730471583103,4.41545525,71432.0,71415.0,0.2096861]
[1730471583303,0.140042,71407.0,71398.0,0.083]
[1730471583506,0.1,71407.0,71398.0,0.083]
[1730471583709,0.293987,71432.0,71398.0,0.083]
[1730471583951,0.1,71416.0,71403.0,0.14005]
[1730471584144,0.1,71416.0,71404.0,0.2096861]
[1730471584344,0.1,71416.0,71398.0,0.083]
[1730471584345,0.13845525,71413.0,71398.0,0.083]
[1730471584546,0.140036,71411.0,71398.0,0.083]
[1730471584725,0.13845525,71410.0,71398.0,0.083]
[1730471584926,0.280065,71412.0,71398.0,0.083]
[1730471584927,0.19030728,71409.0,71398.0,0.083]
[1730471585153,0.13845525,71406.0,71398.0,0.083]
[1730471585353,0.38006,71414.0,71398.0,0.083]
[1730471585354,0.13845525,71404.0,71398.0,0.083]
[1730471586383,0.13845525,71404.0,71403.0,0.14005]
[1730471586593,0.14045525,71404.0,71401.0,0.001582]
[1730471586796,0.14145525,71404.0,71401.0,0.001582]
[1730471587395,0.003,71404.0,71403.0,0.14005]
[1730471587641,0.2096861,71414.0,71413.0,0.14003]
[1730471588047,0.279916,71450.0,71429.0,0.321899]
[1730471588289,0.139964,71447.0,71429.0,0.321899]
[1730471588502,0.279917,71450.0,71429.0,0.321899]
[1730471588706,0.0979663,71451.0,71435.0,0.139986]
[1730471588919,0.0979663,71451.0,71429.0,0.1819]
[1730471588920,0.13845525,71437.0,71429.0,0.1819]
[1730471589345,0.13845525,71437.0,71430.0,0.279994]
[1730471589563,0.13845525,71437.0,71435.0,0.139986]
[1730471589767,0.13845525,71437.0,71429.0,0.1819]
[1730471589768,0.279881,71459.0,71432.0,0.2096861]
[1730471589990,0.34814135,71447.0,71433.0,0.02579952]
[1730471590272,0.279857,71465.0,71449.0,0.139958]
[1730471590472,0.2096861,71446.0,71445.0,0.139967]
[1730471590650,0.139933,71463.0,71450.0,0.139957]
[1730471590854,0.13845525,71457.0,71451.0,0.0771]
[1730471591201,0.13845525,71457.0,71455.0,0.139946]
[1730471591403,0.13845525,71457.0,71452.0,0.1059]
[1730471592263,0.14345525,71457.0,71452.0,0.1059]
[1730471592462,0.14345525,71457.0,71455.0,0.2096861]
[1730471592675,0.2096861,71477.0,71453.0,0.279904]
[1730471592896,0.2096861,71469.0,71461.0,0.139935]
[1730471593114,0.2096861,71477.0,71452.0,0.1059]
[1730471593115,0.13845525,71468.0,71467.0,0.139924]
[1730471593499,0.13845525,71468.0,71464.0,0.279857]
[1730471593702,0.2096861,71481.0,71455.0,0.2096861]
[1730471593703,0.2096861,71481.0,71457.0,0.279888]
[1730471593905,0.13845525,71480.0,71475.0,0.139908]
[1730471594134,0.13845525,71480.0,71458.0,0.02579856]
[1730471594135,0.13845525,71480.0,71477.0,0.139903]
[1730471594264,0.13845525,71480.0,71464.0,0.1003]
[1730471594265,0.13845525,71480.0,71468.0,0.279845]
[1730471594464,0.13845525,71480.0,71478.0,0.139901]
[1730471594680,0.13845525,71480.0,71479.0,0.139901]
[1730471595299,0.279736,71496.0,71475.0,0.279817]
[1730471595539,0.18739746,71491.0,71474.0,0.023]
[1730471595773,0.13845525,71491.0,71489.0,0.0791]
[1730471596641,0.27833325,71491.0,71489.0,0.0791]
[1730471596861,0.13845525,71491.0,71489.0,0.0791]
[1730471597079,0.14245525,71491.0,71489.0,0.0791]
[1730471597294,0.28233325,71491.0,71489.0,0.0791]
[1730471597501,0.28733325,71491.0,71489.0,0.0791]
[1730471597713,0.139879,71490.0,71489.0,0.0791]
[1730471597910,0.27833425,71490.0,71489.0,0.0791]
[1730471598114,0.13845525,71490.0,71489.0,0.0791]
[1730471598541,0.1,71489.0,71475.0,0.0799]
[1730471598775,0.1,71480.0,71479.0,0.2096861]
[1730471598999,0.279802,71479.0,71475.0,0.0799]
[1730471599243,0.139905,71477.0,71475.0,0.0799]
[1730471599461,0.13845525,71476.0,71475.0,0.0799]
[1730471599923,0.13845525,71476.0,71475.0,0.219809]
[1730471600405,0.13845525,71476.0,71475.0,0.221809]
[1730471600846,0.13845525,71476.0,71475.0,0.222809]
[1730471601046,0.13845525,71476.0,71475.0,0.221809]
[1730471601476,0.13845525,71476.0,71475.0,0.222809]
[1730471601811,0.2096861,71485.0,71481.0,0.139895]
[1730471602021,0.34814135,71484.0,71477.0,0.27981]
[1730471602225,0.13845525,71484.0,71478.0,0.139903]
[1730471602629,0.13845525,71484.0,71475.0,0.0829]
[1730471602834,0.279786,71483.0,71475.0,0.0819]
[1730471603006,0.139897,71481.0,71475.0,0.0799]
[1730471603210,0.13845525,71480.0,71475.0,0.0809]
[1730471603441,0.13845525,71480.0,71477.0,0.002]
[1730471603653,0.139903,71478.0,71477.0,0.002]
[1730471604028,0.1,71477.0,71463.0,0.2096861]
[1730471604244,0.1,71475.0,71471.0,0.2096861]
[1730471604452,0.139923,71468.0,71463.0,0.2096861]
[1730471604663,0.13993,71464.0,71463.0,0.2096861]
[1730471604865,0.13845525,71464.0,71463.0,0.2096861]
[1730471605081,0.13845525,71464.0,71462.0,0.0756]
[1730471605282,0.13845525,71463.0,71462.0,0.215534]
[1730471606121,0.13845525,71463.0,71462.0,0.0756]
[1730471606520,0.13845525,71463.0,71462.0,0.215534]
[1730471606988,0.14245525,71463.0,71462.0,0.215534]
[1730471607179,0.14245525,71463.0,71462.0,0.0756]
[1730471607610,0.14245525,71463.0,71462.0,0.0766]
[1730471607810,0.13845525,71463.0,71462.0,0.0756]
[1730471608459,0.14145525,71463.0,71462.0,0.0756]
[1730471609297,0.14145525,71463.0,71462.0,0.215534]
[1730471609509,0.003,71463.0,71462.0,0.215534]
[1730471609702,0.007,71463.0,71462.0,0.215534]
[1730471610634,0.003,71463.0,71462.0,0.215534]
[1730471610845,0.006,71463.0,71462.0,0.215534]
[1730471611474,0.003,71463.0,71462.0,0.215534]
[1730471611708,0.14145525,71463.0,71462.0,0.0756]
[1730471611944,0.14145525,71463.0,71451.0,0.0827]
[1730471611945,0.279885,71458.0,71451.0,0.0827]
[1730471612162,0.14345525,71463.0,71451.0,0.0827]
[1730471612163,0.139946,71456.0,71455.0,0.2096861]
[1730471612382,0.41834725,71456.0,71451.0,0.0827]
[1730471612600,0.13845525,71455.0,71451.0,0.0827]
[1730471613030,0.13845525,71455.0,71440.0,0.1008]
[1730471613031,0.2799,71454.0,71441.0,0.0823]
[1730471613267,0.13845525,71453.0,71441.0,0.0823]
[1730471613689,0.13845525,71453.0,71414.0,0.055991]
[1730471613690,0.139973,71442.0,71431.0,0.36229]
[1730471613900,0.139979,71439.0,71431.0,0.222294]
[1730471614099,0.27843425,71439.0,71438.0,0.000826]
[1730471614304,0.13845525,71439.0,71438.0,0.000826]
[1730471614565,0.27843425,71439.0,71438.0,0.000826]
[1730471617357,0.13845525,71439.0,71438.0,0.000826]
[1730471617995,0.27843425,71439.0,71438.0,0.000826]
[1730471618178,0.13845525,71439.0,71438.0,0.000826]
[1730471618628,0.27843425,71439.0,71438.0,0.000826]
[1730471618849,0.28643425,71439.0,71438.0,0.000826]
[1730471619061,0.47106788,71439.0,71438.0,0.000826]
[1730471619275,0.48406788,71439.0,71438.0,0.000826]
[1730471619474,0.47606788,71439.0,71438.0,0.000826]
[1730471619677,0.46706788,71439.0,71438.0,0.000826]
[1730471619882,0.14945525,71439.0,71438.0,0.000826]
[1730471620293,0.13845525,71439.0,71438.0,0.000826]
[1730471620498,0.14845525,71439.0,71438.0,0.000826]
[1730471620701,0.28843425,71439.0,71438.0,0.000826]
[1730471620901,0.37126767,71439.0,71438.0,0.000826]
[1730471621231,0.47826767,71439.0,71438.0,0.000826]
[1730471622491,0.46326767,71439.0,71438.0,0.000826]
[1730471622697,0.39243425,71439.0,71438.0,0.000826]
[1730471622918,0.40343425,71439.0,71438.0,0.000826]
[1730471623128,0.38943425,71439.0,71438.0,0.000826]
[1730471623530,0.39243425,71439.0,71438.0,0.000826]
[1730471623738,0.39143425,71439.0,71438.0,0.000826]
[1730471623930,0.51494596,71439.0,71438.0,0.000826]
[1730471624131,0.39143425,71439.0,71438.0,0.000826]
[1730471624419,0.40543425,71439.0,71438.0,0.000826]
[1730471625343,0.39243425,71439.0,71438.0,0.000826]
[1730471625454,0.39043425,71439.0,71438.0,0.000826]
[1730471625912,0.40443425,71439.0,71438.0,0.000826]
[1730471626059,0.39243425,71439.0,71438.0,0.000826]
[1730471626270,0.23845525,71439.0,71438.0,0.000826]
[1730471626480,0.16645525,71439.0,71438.0,0.000826]
[1730471626924,0.028,71439.0,71438.0,0.140807]
[1730471627129,0.028,71439.0,71438.0,0.079226]
[1730471627637,0.028,71439.0,71438.0,0.219207]
[1730471628445,0.014,71439.0,71438.0,0.219207]
[1730471628655,0.2096861,71448.0,71438.0,0.1060256]
[1730471628858,0.2096861,71448.0,71447.0,0.139963]
[1730471629276,0.139941,71459.0,71448.0,0.139961]
[1730471629480,0.2096861,71453.0,71448.0,0.139961]
[1730471629743,0.13845525,71452.0,71440.0,0.023]
[1730471629916,0.13845525,71452.0,71446.0,0.279931]
[1730471630122,0.13845525,71452.0,71448.0,0.139961]
[1730471630327,0.13845525,71452.0,71448.0,0.279921]
[1730471630541,0.1,71470.0,71442.0,0.023]
[1730471630756,0.34814135,71460.0,71443.0,0.18519897]
[1730471630988,0.34814135,71460.0,71455.0,0.139946]
[1730471631182,0.34814135,71460.0,71447.0,0.023]
[1730471631383,0.13845525,71460.0,71459.0,0.13994]
[1730471631609,0.13845525,71460.0,71445.0,0.279935]
[1730471631816,0.13845525,71460.0,71444.0,0.023]
[1730471631817,0.13845525,71460.0,71455.0,0.139947]
[1730471632021,0.13845525,71460.0,71450.0,0.69979]
[1730471632227,0.13845525,71460.0,71444.0,0.023]
[1730471632442,0.004,71459.0,71456.0,0.139945]
[1730471632625,0.14245525,71459.0,71450.0,0.279916]
[1730471632793,0.14245525,71459.0,71455.0,0.139946]
[1730471632794,0.13845525,71459.0,71455.0,0.139946]
[1730471632975,0.13845525,71459.0,71453.0,0.139951]
[1730471633173,0.13845525,71459.0,71455.0,0.001]
[1730471633383,0.2096861,71469.0,71455.0,0.001]
[1730471633586,0.13845525,71462.0,71456.0,0.0791]
[1730471634050,0.13845525,71462.0,71461.0,0.139936]
[1730471634847,0.13845525,71462.0,71459.0,0.13994]
[1730471635791,0.13845525,71462.0,71461.0,0.001]
[1730471636425,0.13845525,71462.0,71458.0,0.139942]
[1730471636631,0.13845525,71462.0,71456.0,0.0791]
[1730471636735,0.13945525,71462.0,71457.0,0.139942]
[1730471636945,0.13845525,71462.0,71457.0,0.139942]
[1730471637403,0.14145525,71462.0,71456.0,0.0791]
[1730471637608,0.13845525,71462.0,71456.0,0.219046]
[1730471637804,0.01431073,71461.0,71456.0,0.0791]
[1730471637979,0.13845525,71460.0,71456.0,0.0791]
[1730471639057,0.13845525,71460.0,71457.0,0.001]
[1730471639479,0.13845525,71460.0,71458.0,0.139941]
[1730471639679,0.001652,71463.0,71456.0,0.0791]
[1730471639883,0.14010725,71463.0,71462.0,0.139934]
[1730471640320,0.14010725,71463.0,71461.0,0.1033]